Workbook

Sheet targets
B1: Target gpm calculator for flow meters | J1: v 7-25-11 Univesity of California Cooperative Extension mcmathews@ucdavis.edu
E3: 2011-06-01 | F3: date | I3: source lagoon: | J3: primary lagoon
B4: My Dairy | D4: 2011 | E4: summer | F4: season | I4: thousand gallons needed: | J4: =SUM(D28:M28) -> 0 | N4: extra location
B6: Location
B7: Acres
B8: Irrigation number
B10: Expected run time (hours)
B12: Target lbs/A available N
B13: Total N applied (lbs/A) | D13: =IF(AND(D12>0,D21>0),D12/(D21/D16),0) -> 0 | E13: =IF(AND(E12>0,E21>0),E12/(E21/E16),0) -> 0 | F13: 0 | G13: 0 | H13: 0 | I13: 0 | J13: 0 | K13: 0 | L13: 0 | M13: =IF(AND(M12>0,M21>0),M12/(M21/M16),0) -> 0 | N13: =IF(AND(N12>0,N21>0),N12/(N21/N16),0) -> 0
B15: Sample name
B16: TKN-N (mg/L)
B17: Ammonium-N (mg/L)
B18: % organic-N | D18: =IF(D16>0,(D16-D17)/D16,0) -> 0 | E18: =IF(E16>0,(E16-E17)/E16,0) -> 0 | F18: 0 | G18: 0 | H18: 0 | I18: 0 | J18: 0 | K18: 0 | L18: 0 | M18: =IF(M16>0,(M16-M17)/M16,0) -> 0 | N18: =IF(N16>0,(N16-N17)/N16,0) -> 0
B19: % org-N available
B21: Available N (mg/L) | D21: =IF(D19>0,D17+((D16-D17)*D19),D17) -> 0 | E21: =IF(E19>0,E17+((E16-E17)*E19),E17) -> 0 | F21: 0 | G21: 0 | H21: 0 | I21: 0 | J21: 0 | K21: 0 | L21: 0 | M21: 0 | N21: 0
B23: Target GPM | D23: =IF(D40=0,0,IF(OR(D40>D41,D40=D41),D40,D41)) -> 0 | E23: =IF(E40=0,0,IF(OR(E40>E41,E40=E41),E40,E41)) -> 0 | F23: 0 | G23: 0 | H23: 0 | I23: 0 | J23: 0 | K23: 0 | L23: 0 | M23: 0 | N23: 0
B24: Lagoon only run time | D24: =IF(D57>0,HoursMinutes(D57),"") ->  | E24: =IF(E57>0,HoursMinutes(E57),"") -> 
B25: LW % of run time | D25: =IF(D10>0,D57/D10,0) -> 0 | E25: 0 | F25: 0 | G25: 0 | H25: 0 | I25: 0 | J25: 0 | K25: 0 | L25: 0 | M25: 0 | N25: 0
B27: Velocity (ft/sec) | D27: =IF(D59>0,D23/(D59*448.83),0) -> 0 | E27: 0 | F27: 0 | G27: 0 | H27: 0 | I27: 0 | J27: 0 | K27: 0 | L27: 0 | M27: 0 | N27: 0
B28: Thousand gallons needed | D28: =IF(AND(D13>0,D7>0,D16>0),(D13/(D16*0.008345))*D7,0) -> 0 | E28: =IF(AND(E13>0,E7>0,E16>0),(E13/(E16*0.008345))*E7,0) -> 0 | F28: =IF(AND(F13>0,F7>0,F16>0),(F13/(F16*0.008345))*F7,0) -> 0 | G28: 0 | H28: 0 | I28: 0 | J28: 0 | K28: 0 | L28: 0 | M28: 0 | N28: 0
B29: Acre-inches per acre | D29: =IF(D7>0,(D28/27.1542856)/D7,0) -> 0 | E29: =IF(E7>0,(E28/27.1542856)/E7,0) -> 0 | F29: =IF(F7>0,(F28/27.1542856)/F7,0) -> 0 | G29: 0 | H29: 0 | I29: 0 | J29: 0 | K29: 0 | L29: 0 | M29: 0 | N29: 0
B31: Application Rate Quick Calculator
B33: Actual GPM
B34: Actual hours
B35: Available N applied (lbs/A) | D35: =IF(AND(D21>0,D7>0),((D33*D34*60)/1000*D21*0.008345)/D7,0) -> 0 | E35: =IF(AND(E21>0,E7>0),((E33*E34*60)/1000*E21*0.008345)/E7,0) -> 0 | F35: =IF(AND(F21>0,F7>0),((F33*F34*60)/1000*F21*0.008345)/F7,0) -> 0 | G35: 0 | H35: 0 | I35: 0 | J35: 0 | K35: 0 | L35: 0 | M35: 0 | N35: 0
B36: Total N applied (lbs/A) | D36: =IF(AND(D21>0,D7>0),((D33*D34*60)/1000*D16*0.008345)/D7,0) -> 0 | E36: =IF(AND(E21>0,E7>0),((E33*E34*60)/1000*E16*0.008345)/E7,0) -> 0 | F36: =IF(AND(F21>0,F7>0),((F33*F34*60)/1000*F16*0.008345)/F7,0) -> 0 | G36: 0 | H36: 0 | I36: 0 | J36: 0 | K36: 0 | L36: 0 | M36: 0 | N36: 0
B39: Pump and Pipeline Parameters
B40: calculated GPM | D40: =IF(AND(D21>0,D10>0),((D12*D7)/(D21*0.008345)*1000)/(D10*60),0) -> 0 | E40: =IF(AND(E21>0,E10>0),((E12*E7)/(E21*0.008345)*1000)/(E10*60),0) -> 0 | F40: =IF(AND(F21>0,F10>0),((F12*F7)/(F21*0.008345)*1000)/(F10*60),0) -> 0 | G40: 0 | H40: 0 | I40: 0 | J40: 0 | K40: 0 | L40: 0 | M40: 0 | N40: 0
B41: mimimum GPM | D41: 400 | E41: 400 | F41: 400 | G41: 400 | H41: 400 | I41: 400 | J41: 400 | K41: 400 | L41: 400 | M41: 400 | N41: 400
B42: Pipe inside diameter (in.) | D42: 10 | E42: 10 | F42: 10 | G42: 10 | H42: 10 | I42: 10 | J42: 10 | K42: 10 | L42: 10 | M42: 10 | N42: 10
B43: Minimum velocity (ft/sec) | D43: 2.3 | E43: 2.3 | F43: 2.3 | G43: 2.3 | H43: 2.3 | I43: 2.3 | J43: 2.3 | K43: 2.3 | L43: 2.3 | M43: 2.3 | N43: 2.3
B56: run time at minimum gpm (hrs) | D56: =IF(AND(D21>0,D41>0),((D12*D7)/(D21*0.008345/1000)/D41)/60,0) -> 0 | E56: 0 | F56: 0 | G56: 0 | H56: 0 | I56: 0 | J56: 0 | K56: 0 | L56: 0 | M56: 0 | N56: 0
B57: Target hours | D57: =IF(D$56<D$10,D$56,D$10) -> 0 | E57: 0 | F57: 0 | G57: 0 | H57: 0 | I57: 0 | J57: 0 | K57: 0 | L57: 0 | M57: 0 | N57: 0
B58: min/acre | C58: summer | D58: =IF(D7>0,(D10*60)/D7,0) -> 0 | E58: =IF(E7>0,(E10*60)/E7,0) -> 0 | F58: =IF(F7>0,(F10*60)/F7,0) -> 0 | G58: 0 | H58: 0 | I58: 0 | J58: 0 | K58: 0 | L58: 0 | M58: 0 | N58: 0
B59: pipe ID sq ft | C59: fall | D59: =(((D42/2)*(D42/2))*3.14)/144 -> 0.5451388889 | E59: 0.5451388889 | F59: 0.5451388889 | G59: 0.5451388889 | H59: 0.5451388889 | I59: 0.5451388889 | J59: 0.5451388889 | K59: 0.5451388889 | L59: 0.5451388889 | M59: 0.5451388889 | N59: 0.5451388889

Sheet Default LW sample sets
F1: Default Lagoon Samples
B2: *don’t delete*
B3: LW.default.Set1 | D3: sample set name | F3: LW Default Set 1
B4: LW.default.Set2 | F4: 2010 samples
B5: LW.default.Set3 | F5: LW set 3
B6: LW.default.Set4
B7: LW.default.Set5
F9: Sample description | K9: % organic N | M9: Concentration
H10: LWDset.start | I10: LWDset.end | J10: LWDset.OptSmplName | L10: LWDset.PctONavail | M10: LWDset.TKN | N10: LWDset.ammon | O10: LWDset.NO3 | P10: LWDset.P | Q10: LWDset.K | R10: LWDset.EC
C11: set | F11: season or type | H11: use from start date | I11: use to end date | J11: sample notes | K11: % total N in organic form | L11: % of organic N available this crop | M11: Total Kjeldahl Nitrogen (mg/l or ppm) | N11: Ammonium nitrogen (mg/L) | O11: nitrate-N (mg/L) | P11: Phosphorus/P (mg/L) | Q11: Potassium/K (mg/L) | R11: Electrical Conductivity (umhos/cm)
B12: =C12&" "&F12 -> LW Default Set 1 fall | C12: =F$3 -> LW Default Set 1 | D12: =F3 -> LW Default Set 1 | F12: fall | H12: 2010-10-01 | I12: 2010-11-30 | J12: 4th quarter 2009 | K12: =IFERROR((M12-N12)/M12,0) -> 0.4 | L12: 0.6 | M12: 750 | N12: 450
B13: =C13&" "&F13 -> LW Default Set 1 winter | C13: LW Default Set 1 | F13: winter | H13: =I12+1 -> 2010-12-01 | I13: 2011-02-28 | K13: =IFERROR((M13-N13)/M13,0) -> 0.4066666667 | L13: 0.3 | M13: 900 | N13: 534
B14: =C14&" "&F14 -> LW Default Set 1 early spring | C14: LW Default Set 1 | F14: early spring | H14: =I13+1 -> 2011-03-01 | I14: 2011-04-15 | K14: 0.2916666667 | L14: 0.25 | M14: 600 | N14: 425
B15: LW Default Set 1 late spring | C15: LW Default Set 1 | F15: late spring | H15: =I14+1 -> 2011-04-16 | I15: 2011-06-01 | K15: 0.5 | L15: 0.7 | M15: 500 | N15: 250
B16: LW Default Set 1 early summer | C16: LW Default Set 1 | F16: early summer | H16: =I15+1 -> 2011-06-02 | I16: 2011-07-20 | K16: 0.375 | L16: 0.6 | M16: 400 | N16: 250
B17: LW Default Set 1 late summer | C17: LW Default Set 1 | F17: late summer | H17: =I16+1 -> 2011-07-21 | I17: 2011-09-30 | K17: 0.2142857143 | L17: 0.4 | M17: 350 | N17: 275
B18: LW Default Set 1 thin | C18: LW Default Set 1 | F18: thin | K18: 0.2142857143 | L18: 0.5 | M18: 350 | N18: 275
B19: LW Default Set 1 med | C19: LW Default Set 1 | F19: med | G19: x | K19: 0.3333333333 | L19: 0.5 | M19: 450 | N19: 300
B20: LW Default Set 1 thick | C20: LW Default Set 1 | F20: thick | K20: 0.5 | L20: 0.5 | M20: 700 | N20: 350
B21: LW Default Set 1 v thick | C21: LW Default Set 1 | F21: v thick | K21: 0.6875 | L21: 0.5 | M21: 1600 | N21: 500
B23: 2010 samples 1st quarter | C23: =F$4 -> 2010 samples | D23: =F4 -> 2010 samples | F23: 1st quarter | J23: primary - thicker | K23: =IFERROR((M23-N23)/M23,0) -> 0.4929577465 | L23: 0.5 | M23: 426 | N23: 216
B24: 2010 samples 2nd quarter | C24: 2010 samples | F24: 2nd quarter | J24: primary | K24: =IFERROR((M24-N24)/M24,0) -> 0.3076923077 | L24: 0.5 | M24: 390 | N24: 270
B25: 2010 samples 3rd quarter | C25: 2010 samples | F25: 3rd quarter | K25: 0
B26: 2010 samples 4th quarter | C26: 2010 samples | F26: 4th quarter | K26: 0
B27: 2010 samples | C27: 2010 samples | K27: 0
B28: 2010 samples | C28: 2010 samples | K28: 0
B29: 2010 samples | C29: 2010 samples | K29: 0
B30: 2010 samples | C30: 2010 samples | K30: 0
B31: 2010 samples | C31: 2010 samples | K31: 0
B32: 2010 samples | C32: 2010 samples | K32: 0
B34: LW set 3 fall | C34: =F$5 -> LW set 3 | D34: =F5 -> LW set 3 | F34: fall | H34: 2011-10-01 | I34: 2010-11-30 | K34: =IFERROR((M34-N34)/M34,0) -> 0
B35: LW set 3 winter | C35: LW set 3 | F35: winter | H35: =I34+1 -> 2010-12-01 | I35: 2011-02-28 | K35: =IFERROR((M35-N35)/M35,0) -> 0
B36: LW set 3 early spring | C36: LW set 3 | F36: early spring | H36: =I35+1 -> 2011-03-01 | I36: 2011-04-15 | K36: 0
B37: LW set 3 late spring | C37: LW set 3 | F37: late spring | H37: =I36+1 -> 2011-04-16 | I37: 2011-06-01 | K37: 0
B38: LW set 3 early summer | C38: LW set 3 | F38: early summer | H38: =I37+1 -> 2011-06-02 | I38: 2011-07-20 | K38: 0
B39: LW set 3 late summer | C39: LW set 3 | F39: late summer | H39: =I38+1 -> 2011-07-21 | I39: 2011-09-30 | K39: 0
B40: LW set 3 thin | C40: LW set 3 | F40: thin | K40: 0
B41: LW set 3 med | C41: LW set 3 | F41: med | K41: 0
B42: LW set 3 thick | C42: LW set 3 | F42: thick | K42: 0
B43: LW set 3 v thick | C43: LW set 3 | F43: v thick | K43: 0
B45: 0 | C45: =F$6 -> 0 | D45: =F6 -> 0 | H45: 2011-10-01 | I45: 2010-11-30 | K45: =IFERROR((M45-N45)/M45,0) -> 0
B46: 0 | C46: 0 | H46: =I45+1 -> 2010-12-01 | I46: 2011-02-28 | K46: =IFERROR((M46-N46)/M46,0) -> 0
B47: 0 | C47: 0 | H47: =I46+1 -> 2011-03-01 | I47: 2011-04-15 | K47: 0
B48: 0 | C48: 0 | H48: =I47+1 -> 2011-04-16 | I48: 2011-06-01 | K48: 0
B49: 0 | C49: 0 | H49: =I48+1 -> 2011-06-02 | I49: 2011-07-20 | K49: 0
B50: 0 | C50: 0 | H50: =I49+1 -> 2011-07-21 | I50: 2011-09-30 | K50: 0
B51: 0 | C51: 0 | K51: 0
B52: 0 | C52: 0 | K52: 0
B53: 0 | C53: 0 | K53: 0
B54: 0 | C54: 0 | K54: 0
B56: 0 | C56: =F$7 -> 0 | D56: =F7 -> 0 | H56: 2011-10-01 | I56: 2010-11-30 | K56: =IFERROR((M56-N56)/M56,0) -> 0
B57: 0 | C57: 0 | H57: =I56+1 -> 2010-12-01 | I57: 2011-02-28 | K57: =IFERROR((M57-N57)/M57,0) -> 0
B58: 0 | C58: 0 | H58: =I57+1 -> 2011-03-01 | I58: 2011-04-15 | K58: 0
B59: 0 | C59: 0 | H59: =I58+1 -> 2011-04-16 | I59: 2011-06-01 | K59: 0
B60: 0 | C60: 0 | H60: =I59+1 -> 2011-06-02 | I60: 2011-07-20 | K60: 0
B61: 0 | C61: 0 | H61: =I60+1 -> 2011-07-21 | I61: 2011-09-30 | K61: 0
B62: 0 | C62: 0 | K62: 0
B63: 0 | C63: 0 | K63: 0
B64: 0 | C64: 0 | K64: 0
B65: 0 | C65: 0 | K65: 0

Sheet field sheet (hidden)
A1: Target gpm field sheet for flow meters | C1: My Dairy | D1: 2011 | G1: University of California Cooperative Extension v 5-10-11
A2: 2011-05-01 | B2: summer | C2: main lagoon | D2: =SUM(B41:K41) -> 1815.639922 | E2: Kgals needed
A4: location | B4: Field 1 | C4: Field 2 | D4: Field 3 | E4: Field 4 | F4: Field 5
A5: acres | B5: 32 | C5: 25 | D5: 30 | E5: 20 | F5: 18
A6: irrig num | B6: pre | C6: pre | D6: pre | E6: pre | F6: pre
A8: expected run time (hours) | B8: 13 | C8: 9 | D8: 12.8 | E8: 8.5 | F8: 9
A10: target lbs/ac available N | B10: 40 | C10: 40 | D10: 40 | E10: 40 | F10: 40
A11: lbs/ac total N applied | B11: =IF(AND(B10>0,B14>0),B10/(B19/B14),0) -> 47.27272727 | C11: 47.27272727 | D11: 47.27272727 | E11: 47.27272727 | F11: 47.27272727 | G11: 0 | H11: 0 | I11: 0 | J11: 0 | K11: 0 | L11: 0
A13: sample name | B13: 2010 samples 2nd quarter | C13: 2010 samples 2nd quarter | D13: 2010 samples 2nd quarter | E13: 2010 samples 2nd quarter | F13: 2010 samples 2nd quarter
A14: TKN-N (mg/L) | B14: 390 | C14: 390 | D14: 390 | E14: 390 | F14: 390
A15: ammonium-N (mg/L) | B15: 270 | C15: 270 | D15: 270 | E15: 270 | F15: 270
A16: % organic-N | B16: =IF(ISERROR((B14-B15)/B14),0,(B14-B15)/B14) -> 0.3076923077 | C16: =IF(ISERROR((C14-C15)/C14),0,(C14-C15)/C14) -> 0.3076923077 | D16: 0.3076923077 | E16: 0.3076923077 | F16: 0.3076923077 | G16: 0 | H16: 0 | I16: 0 | J16: =IF(ISERROR((J14-J15)/J14),0,(J14-J15)/J14) -> 0 | K16: =IF(ISERROR((K14-K15)/K14),0,(K14-K15)/K14) -> 0 | L16: =IF(ISERROR((L14-L15)/L14),0,(L14-L15)/L14) -> 0
A17: % org-N available | B17: 0.5 | C17: 0.5 | D17: 0.5 | E17: 0.5 | F17: 0.5
A19: mg/L available N | B19: =B15+((B14-B15)*B17) -> 330 | C19: 330 | D19: 330 | E19: 330 | F19: 330 | G19: 0 | H19: 0 | I19: 0 | J19: 0 | K19: 0 | L19: 0
A21: Target GPM | B21: =IF(B35=0,0,IF(OR(B35>B36,B35=B36),B35,B36)) -> 595.9023335 | C21: 672.4592305 | D21: 567.3874757 | E21: 569.6125246 | F21: 484.1706459 | G21: 0 | H21: 0 | I21: 0 | J21: 0 | K21: 0 | L21: 0
A22: target hours | B22: =IF(B52,"",CONCATENATE(INT(B51)," hrs ",ROUND((B51-INT(B51))*60,0)," mins")) -> 13 hrs 0 mins | C22: =IF(C52,"",CONCATENATE(INT(C51)," hrs ",ROUND((C51-INT(C51))*60,0)," mins")) -> 9 hrs 0 mins | D22: 12 hrs 48 mins | E22: 8 hrs 30 mins | F22: 9 hrs 0 mins
A23: LW % of run time | B23: =IF(B8>0,B51/B8,0) -> 1 | C23: 1 | D23: 1 | E23: 1 | F23: 1 | G23: 0 | H23: 0 | I23: 0 | J23: 0 | K23: 0 | L23: 0
A24: Velocity (ft/sec) | B24: =IF(B50>0,B21/(B50*448.83),0) -> 2.435488279 | C24: 2.74838087 | D24: 2.318946359 | E24: 2.328040266 | F24: 1.978834226 | G24: 0 | H24: 0 | I24: 0 | J24: 0 | K24: 0 | L24: 0
A26: Application Rate Quick Calculator | B26: =IF(B4="","",B4) -> Field 1 | C26: =IF(C4="","",C4) -> Field 2 | D26: =IF(D4="","",D4) -> Field 3 | E26: Field 4 | F26: Field 5
A28: actual GPM
A29: actual hours
A30: applied available N/acre | B30: =IF(AND(B19>0,B5>0),((B28*B29*60)/1000*B19*0.008345)/B5,0) -> 0 | C30: 0 | D30: 0 | E30: 0 | F30: 0 | G30: 0 | H30: 0 | I30: 0 | J30: 0 | K30: 0 | L30: 0
A31: applied total N/acre | B31: =IF(AND(B19>0,B5>0),((B28*B29*60)/1000*B14*0.008345)/B5,0) -> 0 | C31: 0 | D31: 0 | E31: 0 | F31: 0 | G31: 0 | H31: 0 | I31: 0 | J31: 0 | K31: 0 | L31: 0
A34: Pump and Pipeline Parameters
A35: calculated GPM | B35: =IF(AND(B19>0,B8>0),((B10*B5)/(B19*0.008345)*1000)/(B8*60),0) -> 595.9023335 | C35: 672.4592305 | D35: 567.3874757 | E35: 569.6125246 | F35: 484.1706459 | G35: 0 | H35: 0 | I35: 0 | J35: 0 | K35: 0 | L35: 0
A36: mimimum GPM | B36: 400 | C36: 400 | D36: 400 | E36: 400 | F36: 400 | G36: 400 | H36: 400 | I36: 400 | J36: 400 | K36: 400 | L36: 400
A37: pipe inside diameter (in.) | B37: 10 | C37: 10 | D37: 10 | E37: 10 | F37: 10 | G37: 10 | H37: 10 | I37: 10 | J37: 10 | K37: 10 | L37: 10
A38: minimum velocity (f/s) | B38: 2.3 | C38: 2.3 | D38: 2.3 | E38: 2.3 | F38: 2.3 | G38: 2.3 | H38: 2.3 | I38: 2.3 | J38: 2.3 | K38: 2.3 | L38: 2.3
A41: thousand gallons needed | B41: =IF(AND(B11>0,B5>0,B14>0),(B11/(B14*0.008345))*B5,0) -> 464.8038201 | C41: 363.1279845 | D41: 435.7535813 | E41: 290.5023876 | F41: 261.4521488 | G41: 0 | H41: 0 | I41: 0 | J41: 0 | K41: 0 | L41: 0
A42: acre-inches pre acre | B42: =IF(B5>0,(B41/27.1542856)/B5,0) -> 0.5349107538 | C42: =IF(C5>0,(C41/27.1542856)/C5,0) -> 0.5349107538 | D42: 0.5349107538 | E42: 0.5349107538 | F42: 0.5349107538 | G42: 0 | H42: 0 | I42: 0 | J42: 0 | K42: =IF(K5>0,(K41/27.1542856)/K5,0) -> 0 | L42: =IF(L5>0,(L41/27.1542856)/L5,0) -> 0
A48: run time at minimum gpm (hrs) | B48: =IF(AND(B19>0,B36>0),((B10*B5)/(B19*0.008345/1000)/B36)/60,0) -> 19.36682584 | C48: 15.13033269 | D48: 18.15639922 | E48: 12.10426615 | F48: 10.89383953 | G48: 0 | H48: 0 | I48: 0 | J48: 0 | K48: 0 | L48: 0
A49: min/acre | B49: =IF(B5>0,(B8*60)/B5,0) -> 24.375 | C49: 21.6 | D49: 25.6 | E49: 25.5 | F49: 30 | G49: 0 | H49: 0 | I49: 0 | J49: 0 | K49: 0 | L49: 0
A50: pipe ID sq ft | B50: =(((B37/2)*(B37/2))*3.14)/144 -> 0.5451388889 | C50: 0.5451388889 | D50: 0.5451388889 | E50: 0.5451388889 | F50: 0.5451388889 | G50: 0.5451388889 | H50: 0.5451388889 | I50: 0.5451388889 | J50: 0.5451388889 | K50: 0.5451388889 | L50: 0.5451388889
A51: target hours | B51: =IF(B$48<B$8,B$48,B$8) -> 13 | C51: 9 | D51: 12.8 | E51: 8.5 | F51: 9 | G51: 0 | H51: 0 | I51: 0 | J51: 0 | K51: 0 | L51: 0
A52: empty | B52: =IF(B51>0,FALSE,TRUE) -> FALSE | C52: =IF(C51>0,FALSE,TRUE) -> FALSE | D52: FALSE | E52: FALSE | F52: FALSE | G52: TRUE | H52: TRUE | I52: TRUE | J52: TRUE | K52: TRUE | L52: TRUE

Sheet datasheet
B2: Irrigation Data Sheet
B4: =targets!B4 -> My Dairy | K4: date
B5: =targets!E3 -> 2011-06-01 | K5: rainfall
B7: source: | K7: concentrations | L7: total N | M7: NH4-N | N7: Org-N | O7: % avail | P7: Avail N
B8: =targets!J3 -> primary lagoon | K8: expected (mg/L) | L8: =targets!D16 -> 0 | M8: =targets!D17 -> 0 | N8: =mrs.total_N-M8 -> 0 | O8: =targets!D19 -> 0 | P8: =targets!D21 -> 0
Q9: standing water
B11: Location | C11: acres | D11: Irrigation number | E11: Target N lbs/A | I11: Target gpm | K11: Location Start Date/Time | L11: Location End Date/Time | M11: Meter Start (total gallons) | N11: Meter End (total gallons) | O11: Average observed gpm | P11: Fresh Water Source(s) | Q11: day before | R11: day after | S11: irrigator initials & notes
B12: =targets!D$6 -> 0 | C12: =targets!D$7 -> 0 | D12: =targets!D$8 -> 0 | E12: =targets!D$12 -> 0 | F12: =HoursMinutes(targets!D$10) ->  | H12: =HoursMinutes(targets!D$57) ->  | I12: =MROUND(targets!D$23,5) -> 0
H13: =targets!D$25 -> 0
B14: =targets!E$6 -> 0 | C14: =targets!E$7 -> 0 | D14: =targets!E$8 -> 0 | E14: =targets!E$12 -> 0 | F14: =HoursMinutes(targets!E$10) ->  | H14: =HoursMinutes(targets!E$57) ->  | I14: =MROUND(targets!E$23,5) -> 0
H15: =targets!E$25 -> 0
B16: =targets!F$6 -> 0 | C16: =targets!F$7 -> 0 | D16: =targets!F$8 -> 0 | E16: =targets!F$12 -> 0 | F16: =HoursMinutes(targets!F$10) ->  | H16: =HoursMinutes(targets!F$57) ->  | I16: =MROUND(targets!F$23,5) -> 0
H17: =targets!F$25 -> 0
B18: =targets!G$6 -> 0 | C18: =targets!G$7 -> 0 | D18: =targets!G$8 -> 0 | E18: =targets!G$12 -> 0 | F18: =HoursMinutes(targets!G$10) ->  | H18: =HoursMinutes(targets!G$57) ->  | I18: =MROUND(targets!G$23,5) -> 0
H19: =targets!G$25 -> 0
B20: =targets!H$6 -> 0 | C20: =targets!H$7 -> 0 | D20: =targets!H$8 -> 0 | E20: =targets!H$12 -> 0 | F20: =HoursMinutes(targets!H$10) ->  | H20: =HoursMinutes(targets!H$57) ->  | I20: =MROUND(targets!H$23,5) -> 0
H21: =targets!H$25 -> 0
B22: =targets!I$6 -> 0 | C22: =targets!I$7 -> 0 | D22: =targets!I$8 -> 0 | E22: =targets!I$12 -> 0 | F22: =HoursMinutes(targets!I$10) ->  | H22: =HoursMinutes(targets!I$57) ->  | I22: =MROUND(targets!I$23,5) -> 0
H23: =targets!I$25 -> 0
B24: =targets!J$6 -> 0 | C24: =targets!J$7 -> 0 | D24: =targets!J$8 -> 0 | E24: =targets!J$12 -> 0 | F24: =HoursMinutes(targets!J$10) ->  | H24: =HoursMinutes(targets!J$57) ->  | I24: =MROUND(targets!J$23,5) -> 0
H25: =targets!J$25 -> 0
B26: =targets!K$6 -> 0 | C26: =targets!K$7 -> 0 | D26: =targets!K$8 -> 0 | E26: =targets!K$12 -> 0 | F26: =HoursMinutes(targets!K$10) ->  | H26: =HoursMinutes(targets!K$57) ->  | I26: =MROUND(targets!K$23,5) -> 0
H27: =targets!K$25 -> 0
B28: =targets!L$6 -> 0 | C28: =targets!L$7 -> 0 | D28: =targets!L$8 -> 0 | E28: =targets!L$12 -> 0 | F28: =HoursMinutes(targets!L$10) ->  | H28: =HoursMinutes(targets!L$57) ->  | I28: =MROUND(targets!L$23,5) -> 0
H29: =targets!L$25 -> 0
B30: =targets!M$6 -> 0 | C30: =targets!M$7 -> 0 | D30: =targets!M$8 -> 0 | E30: =targets!M$12 -> 0 | F30: =HoursMinutes(targets!M$10) ->  | H30: =HoursMinutes(targets!M$57) ->  | I30: =MROUND(targets!M$23,5) -> 0
H31: =targets!M$25 -> 0
